bitfinex/quotes_ETHUSD_20230109
["timestamp","ask_amount","ask_price","bid_price","bid_amount"]
[1673278353884,9.79448162,1326.2,1326.0,24.61435765]
[1673278354225,3.61136589,1326.4,1326.1,5.80724462]
[1673278354435,0.066,1326.5,1326.2,7.94424462]
[1673278354647,2.82107135,1326.4,1326.2,10.52641626]
[1673278354807,1.12842854,1326.4,1326.2,36.26115053]
[1673278355012,1.12842854,1326.4,1326.2,28.72081053]
[1673278355270,1.12842854,1326.4,1326.2,25.22081053]
[1673278355501,1.12842854,1326.4,1326.2,10.14013053]
[1673278355910,1.12842854,1326.4,1326.2,2.59979053]
[1673278356207,1.12842854,1326.4,1326.2,10.07408053]
[1673278356419,1.12842854,1326.4,1326.2,17.68042053]
[1673278357276,1.12842854,1326.4,1326.2,25.22076053]
[1673278357747,1.12842854,1326.4,1326.3,3.0]
[1673278357906,1.12842854,1326.4,1326.3,5.06804205]
[1673278358116,1.12842854,1326.4,1326.3,5.13404205]
[1673278358327,2.81898293,1326.4,1326.3,5.13404205]
[1673278358537,1.12842854,1326.4,1326.3,5.13404205]
[1673278359322,1.12842854,1326.4,1326.3,3.066]
[1673278359482,1.12842854,1326.4,1326.3,3.0]
[1673278359483,3.1363702,1326.4,1326.3,3.0]
[1673278360321,1.44581581,1326.4,1326.3,3.0]
[1673278360535,3.1363702,1326.4,1326.3,3.0]
[1673278360790,1.44581581,1326.4,1326.3,3.0]
[1673278361431,3.13584512,1326.4,1326.2,4.8472151]
[1673278361590,18.21424512,1326.4,1326.2,3.60042457]
[1673278361801,1.12842854,1326.3,1326.2,3.60042457]
[1673278362425,1.4458408,1326.3,1326.2,3.03462457]
[1673278362643,1.44584337,1326.3,1326.2,10.57496457]
[1673278362958,1.44584337,1326.3,1326.2,10.64096457]
[1673278363163,1.12842854,1326.3,1326.2,18.18130457]
[1673278363382,1.12842854,1326.3,1326.2,10.64096457]
[1673278363805,1.12842854,1326.3,1326.2,3.10062457]
[1673278364021,1.12842854,1326.3,1326.2,3.03462457]
[1673278364225,1.445832,1326.3,1326.2,3.03462457]
[1673278365099,1.445832,1326.3,1326.2,10.57496457]
[1673278365292,1.445832,1326.3,1326.2,10.64096457]
[1673278365507,1.445832,1326.3,1326.2,45.64096457]
[1673278365693,1.445832,1326.3,1326.2,38.10062457]
[1673278366845,1.445832,1326.3,1326.2,45.64096457]
[1673278367511,1.445832,1326.3,1326.2,38.10062457]
[1673278368320,1.445832,1326.3,1326.2,38.066]
[1673278369492,1.445832,1326.3,1326.2,45.60634]
[1673278369725,1.445832,1326.3,1326.2,49.89894]
[1673278370048,1.445832,1326.3,1326.2,64.97962]
[1673278370222,1.445832,1326.3,1326.2,49.89894]
[1673278370636,1.445832,1326.3,1326.2,66.33262]
[1673278371362,1.445832,1326.3,1326.2,67.69662]
[1673278371587,0.31740346,1326.3,1326.2,67.69662]
[1673278371901,0.31740346,1326.3,1326.2,60.15628]
[1673278372310,0.31740346,1326.3,1326.2,67.69662]
[1673278372731,0.31740346,1326.3,1326.2,60.15628]
[1673278372944,0.31740346,1326.3,1326.2,67.69662]
[1673278373371,0.31740346,1326.3,1326.2,60.15628]
[1673278373585,0.31740346,1326.3,1326.2,67.69662]
[1673278375564,0.31740346,1326.3,1326.2,25.15628]
[1673278376045,0.31740346,1326.3,1326.2,60.15628]
[1673278376558,0.31740346,1326.3,1326.2,58.80328]
[1673278377166,5.45537912,1326.4,1326.2,66.34362]
[1673278377480,5.38937912,1326.4,1326.2,66.33998345]
[1673278378005,5.38937912,1326.4,1326.2,70.13764409]
[1673278379272,5.38937912,1326.4,1326.3,5.15766064]
[1673278379503,5.38937912,1326.4,1326.3,32.76691829]
[1673278380591,3.13584512,1326.4,1326.3,32.76691829]
[1673278382177,1.76378622,1326.4,1326.3,32.76691829]
[1673278384178,1.76378622,1326.4,1326.3,37.18256934]
[1673278384567,1.76378622,1326.4,1326.3,37.74836934]
[1673278384958,1.76378622,1326.4,1326.3,37.74665913]
[1673278385170,1.76378622,1326.4,1326.3,33.33271829]
[1673278385636,1.76378622,1326.4,1326.3,32.76691829]
[1673278386021,0.63535768,1326.4,1326.3,32.76691829]
[1673278386452,0.63535768,1326.4,1326.3,67.76691829]
[1673278387275,0.31738727,1326.4,1326.3,72.18173265]
[1673278387488,0.31738727,1326.4,1326.3,67.76691829]
[1673278387693,0.31738727,1326.4,1326.3,72.18174942]
[1673278388170,0.31738727,1326.4,1326.3,72.1817451]
[1673278389109,0.31738727,1326.4,1326.3,72.179586]
[1673278389914,0.31738727,1326.4,1326.3,67.76691829]
[1673278391193,0.31738727,1326.4,1326.3,72.18001561]
[1673278391428,0.31738727,1326.4,1326.3,67.76691829]
[1673278391747,0.31738727,1326.4,1326.3,72.18001008]
[1673278392280,0.82897606,1326.6,1326.3,72.18001008]
[1673278392490,0.82897606,1326.6,1326.5,25.11589]
[1673278392687,0.82897606,1326.6,1326.5,22.68189]
[1673278392875,0.82897606,1326.6,1326.5,26.08371306]
[1673278394018,0.82897606,1326.6,1326.5,35.6504694]
[1673278394225,0.82897606,1326.6,1326.5,38.6504694]
[1673278394910,0.82897606,1326.6,1326.5,34.2373737]
[1673278396906,0.82897606,1326.6,1326.5,30.43971306]
[1673278397074,0.82897606,1326.6,1326.5,65.43971306]
[1673278397686,0.83097606,1326.6,1326.5,65.43771306]
[1673278397920,0.82897606,1326.6,1326.5,65.43971306]
[1673278398244,0.82897606,1326.6,1326.5,65.79371306]
[1673278399634,0.83097606,1326.6,1326.5,65.79171306]
[1673278399797,0.82897606,1326.6,1326.5,65.79371306]
[1673278400008,0.82897606,1326.6,1326.5,65.79136462]
[1673278400734,0.82897606,1326.6,1326.5,43.17782306]
[1673278400942,0.82897606,1326.6,1326.5,49.00645306]
[1673278401188,0.82897606,1326.6,1326.5,64.08371306]
[1673278402890,0.82897606,1326.6,1326.5,64.08171306]
[1673278402891,0.83097606,1326.6,1326.5,64.08171306]
[1673278403118,0.82897606,1326.6,1326.5,64.08371306]
[1673278406581,0.82897606,1326.6,1326.5,50.71645306]
[1673278406807,0.82897606,1326.6,1326.5,43.17782306]
[1673278407039,0.82897606,1326.6,1326.5,30.79371306]
[1673278407560,0.82897606,1326.6,1326.5,65.79371306]
[1673278410460,0.82686099,1326.6,1326.5,65.79371306]
[1673278412038,2.31540429,1326.6,1326.5,65.79371306]
[1673278412289,0.82686099,1326.6,1326.5,65.79371306]
[1673278415301,0.82686099,1326.6,1326.5,75.70757827]
[1673278415302,9.9e-07,1326.6,1326.5,75.70757827]
[1673278415537,9.9e-07,1326.6,1326.5,98.77456159]
[1673278416294,9.9e-07,1326.6,1326.5,97.24620827]
[1673278416810,9.9e-07,1326.6,1326.5,98.77532054]
[1673278418809,9.9e-07,1326.6,1326.5,100.62145933]
[1673278421315,9.9e-07,1326.6,1326.5,98.77532054]
[1673278421933,9.9e-07,1326.6,1326.5,100.62091211]
[1673278422180,9.9e-07,1326.6,1326.5,98.77532054]
[1673278422369,9.9e-07,1326.6,1326.5,94.36311597]
[1673278422543,9.9e-07,1326.6,1326.5,97.22960492]
[1673278422758,9.9e-07,1326.6,1326.5,91.1300037]
[1673278423092,9.9e-07,1326.6,1326.5,64.08371306]
[1673278423310,9.9e-07,1326.6,1326.5,56.54508306]
[1673278423485,9.9e-07,1326.6,1326.5,64.08371306]
[1673278423901,1.1270229,1326.6,1326.5,64.08371306]
[1673278424140,1.1270229,1326.6,1326.5,60.68189]
[1673278425213,1.1270229,1326.6,1326.5,38.066]
[1673278425388,4.52755576,1326.6,1326.5,0.066]
[1673278425595,7.70359987,1326.6,1326.3,7.60566]
[1673278425809,3.17505544,1326.5,1326.3,22.6852]
[1673278426017,2.83902116,1326.5,1326.3,22.6852]
[1673278426225,4.53254195,1326.5,1326.3,22.6852]
[1673278426453,2.83902116,1326.5,1326.3,22.6852]
[1673278426665,4.53254195,1326.5,1326.3,22.6852]
[1673278426879,2.83902116,1326.5,1326.3,22.6852]
[1673278427483,1.12902116,1326.5,1326.3,22.6852]
[1673278427701,1.12902116,1326.5,1326.3,24.44517905]
[1673278427922,2.82254195,1326.5,1326.3,22.6852]
[1673278428103,2.82254195,1326.5,1326.4,3.0]
[1673278428467,3.27519432,1326.5,1326.4,25.6176]
[1673278428663,3.27519432,1326.5,1326.4,25.6836]
[1673278429893,2.14617316,1326.5,1326.4,25.6836]
[1673278430103,1.69352079,1326.5,1326.4,25.6836]
[1673278430345,4.40021697,1326.5,1326.4,25.6836]
[1673278430563,4.40021697,1326.5,1326.4,10.6052]
[1673278430766,2.70669618,1326.5,1326.4,10.6052]
[1673278430987,2.70669618,1326.5,1326.4,0.066]
[1673278431186,2.70669618,1326.5,1326.3,3.0]
[1673278431187,29.85014095,1326.5,1326.3,3.0]
[1673278431394,4.42159723,1326.4,1326.3,3.0]
[1673278431600,6.11577326,1326.4,1326.3,3.0]
[1673278432113,4.40577326,1326.4,1326.3,3.0]
[1673278432469,4.07459723,1326.4,1326.3,3.0]
[1673278433389,5.76707486,1326.4,1326.3,3.0]
[1673278433602,3.50813,1326.4,1326.3,3.0]
[1673278434010,3.50813,1326.4,1326.3,18.07954]
[1673278434217,3.50813,1326.4,1326.3,3.066]
[1673278434460,5.76707486,1326.4,1326.3,3.0]
[1673278435404,3.50813,1326.4,1326.3,3.0]
[1673278435582,4.63597888,1326.4,1326.3,3.0]
[1673278435789,3.50813,1326.4,1326.3,3.0]
[1673278435982,4.6359442,1326.4,1326.3,3.0]
[1673278436197,1.58046657,1326.4,1326.3,38.0]
[1673278436519,1.58046657,1326.4,1326.3,38.066]
[1673278437145,3.2729442,1326.4,1326.3,38.066]
[1673278437356,1.58046657,1326.4,1326.3,38.066]
[1673278437782,1.58046657,1326.4,1326.3,45.60577]
[1673278438000,1.58046657,1326.4,1326.3,38.066]
[1673278438224,3.2729442,1326.4,1326.3,38.06367706]
[1673278438765,1.58046657,1326.4,1326.3,53.14321706]
[1673278438975,1.58046657,1326.4,1326.3,45.60344706]
[1673278439199,2.89016831,1326.5,1326.3,60.68298706]
[1673278439354,2.82416831,1326.5,1326.3,60.68298706]
[1673278439564,3.35021706,1326.5,1326.3,60.68298706]
[1673278440034,1.1278142,1326.5,1326.4,3.5]
[1673278440351,1.19381519,1326.6,1326.4,29.1176]
[1673278440522,1.19381519,1326.6,1326.5,25.61589]
[1673278440523,9.9e-07,1326.6,1326.5,25.61589]
[1673278440732,9.9e-07,1326.6,1326.5,25.68189]
[1673278443567,0.00200099,1326.6,1326.5,25.67989]
[1673278443786,9.9e-07,1326.6,1326.5,25.68189]
[1673278444652,1.12781519,1326.6,1326.5,0.066]
[1673278444858,1.12781519,1326.6,1326.4,3.03304253]
[1673278445190,3.39036193,1326.6,1326.4,10.57199253]
[1673278445489,3.39036193,1326.6,1326.4,25.71639253]
[1673278445490,2.82029282,1326.6,1326.4,25.71639253]
[1673278445895,1.12781519,1326.6,1326.4,25.71639253]
[1673278446107,1.69780904,1326.6,1326.4,25.71639253]
[1673278446708,1.69780904,1326.6,1326.5,35.0]
[1673278446920,1.69780904,1326.6,1326.5,35.066]
[1673278447173,1.69780904,1326.6,1326.5,50.14326]
[1673278447337,1.69780904,1326.6,1326.5,57.68189]
[1673278449770,1.12781519,1326.6,1326.5,57.68189]
[1673278450384,1.69817446,1326.6,1326.5,57.68189]
[1673278454383,1.12781519,1326.6,1326.5,57.68189]
[1673278454607,1.69817446,1326.6,1326.5,57.68189]
[1673278456743,1.69817446,1326.6,1326.5,22.68189]
[1673278457062,3.39065209,1326.6,1326.5,22.68189]
[1673278458798,1.69817446,1326.6,1326.5,22.68189]
[1673278459472,1.69843993,1326.6,1326.5,22.68189]
[1673278459641,1.12781519,1326.6,1326.5,22.68189]
[1673278460612,9.9e-07,1326.6,1326.5,27.84035623]
[1673278460793,9.9e-07,1326.6,1326.5,31.40605623]
[1673278462422,9.9e-07,1326.6,1326.5,23.86742623]
[1673278462639,9.9e-07,1326.6,1326.5,31.40605623]
[1673278463319,1.12781519,1326.6,1326.5,31.40605623]
[1673278464382,1.12781519,1326.6,1326.5,30.84035623]
[1673278464576,1.12781519,1326.6,1326.5,25.67969559]
[1673278465621,9.9e-07,1326.6,1326.5,25.67969559]
[1673278466274,9.9e-07,1326.6,1326.5,29.17969559]
[1673278466694,9.9e-07,1326.6,1326.5,25.67969559]
[1673278467845,9.9e-07,1326.6,1326.5,60.67969559]
[1673278471765,1.12781519,1326.6,1326.5,60.67969559]
[1673278474067,1.74243359,1326.6,1326.5,60.67969559]
[1673278474281,1.12781519,1326.6,1326.5,60.67969559]
[1673278474459,1.74243359,1326.6,1326.5,60.67969559]
[1673278475122,1.7428627,1326.6,1326.5,60.67969559]
[1673278475558,1.74311043,1326.6,1326.5,60.67969559]
[1673278475866,1.74310231,1326.6,1326.5,60.67969559]
[1673278476056,1.12781519,1326.6,1326.5,60.67969559]
[1673278476663,9.9e-07,1326.6,1326.5,60.67969559]
[1673278476874,1.12781519,1326.6,1326.5,60.67969559]
[1673278477715,1.74308334,1326.6,1326.5,60.67969559]
[1673278478612,1.74508334,1326.6,1326.5,60.67769559]
[1673278478918,1.74308334,1326.6,1326.5,62.03769559]
[1673278479137,9.9e-07,1326.6,1326.5,67.08663734]
[1673278479298,1.74355587,1326.6,1326.5,67.08663734]
[1673278479512,1.12781519,1326.6,1326.5,67.08663734]
[1673278479750,1.12781519,1326.6,1326.5,68.72545702]
[1673278479935,1.12781519,1326.6,1326.5,67.08663734]
[1673278480367,9.9e-07,1326.6,1326.5,68.69207117]
[1673278481014,9.9e-07,1326.6,1326.5,67.08663734]
[1673278481237,1.12781519,1326.6,1326.5,67.08663734]
[1673278481558,1.12781519,1326.6,1326.5,65.83535623]
[1673278482043,1.78759431,1326.6,1326.5,65.83535623]
[1673278485633,1.78745736,1326.6,1326.5,65.83535623]
[1673278485895,1.12781519,1326.6,1326.5,65.83535623]
[1673278486315,1.12781519,1326.6,1326.5,67.04247927]
[1673278486482,1.12781519,1326.6,1326.5,65.83535623]
[1673278487984,1.78747598,1326.6,1326.5,65.83535623]
[1673278488418,1.12781519,1326.6,1326.5,65.83535623]
[1673278488635,1.78747598,1326.6,1326.5,67.04226128]
[1673278488860,1.12781519,1326.6,1326.5,67.04226128]
[1673278489005,9.9e-07,1326.6,1326.5,85.13656767]
[1673278489363,1.1278142,1326.7,1326.6,27.8297429]
[1673278489580,2.94551565,1326.8,1326.6,40.22037718]
[1673278489736,2.94551565,1326.8,1326.7,1.358]
[1673278489945,3.60510059,1326.8,1326.7,26.97047]
[1673278490207,3.60510059,1326.8,1326.7,65.53427559]
[1673278490400,1.91262296,1326.8,1326.7,65.53427559]
[1673278491000,3.60510059,1326.8,1326.7,65.53427559]
[1673278491327,3.60510059,1326.8,1326.7,69.33193623]
[1673278491328,1.91262296,1326.8,1326.7,69.33193623]
[1673278492058,1.25303802,1326.8,1326.7,69.33193623]
[1673278492474,0.12522382,1326.8,1326.7,69.33193623]
[1673278493105,3.82e-06,1326.8,1326.7,87.58365438]
[1673278493316,1.75847763,1327.0,1326.7,87.58365438]
[1673278493317,1.1278142,1327.0,1326.8,3.625]
[1673278493526,1.74037987,1327.0,1326.9,3.0]
[1673278493787,1.74037987,1327.0,1326.9,33.14544]
[1673278493997,1.74037987,1327.0,1326.9,33.20924559]
[1673278494210,1.74037987,1327.0,1326.9,33.21567544]
[1673278494386,1.31956016,1327.1,1327.0,3.5]
[1673278494590,1.31956016,1327.1,1327.0,27.31437]
[1673278494591,1.25356016,1327.1,1327.0,27.31437]
[1673278494789,1.25356016,1327.1,1327.0,27.37817559]
[1673278494997,2.94603779,1327.1,1327.0,27.37817559]
[1673278495215,1.81828203,1327.1,1327.0,27.37817559]
[1673278495987,1.82028203,1327.1,1327.0,27.37617559]
[1673278496306,1.81828203,1327.1,1327.0,27.37817559]
[1673278496553,2.94570284,1327.1,1327.0,27.37817559]
[1673278497892,1.81828203,1327.1,1327.0,27.37817559]
[1673278498393,2.94575615,1327.1,1327.0,27.37817559]
[1673278499045,0.1258044,1327.1,1327.0,27.37817559]
[1673278499200,1.25295294,1327.1,1327.0,27.37817559]
[1673278499409,2.94543057,1327.1,1327.0,27.37817559]
[1673278500725,1.81828203,1327.1,1327.0,60.67117559]
[1673278501726,4.07722689,1327.1,1327.0,60.67117559]
[1673278502146,1.81828203,1327.1,1327.0,60.67117559]
[1673278502387,4.07722689,1327.1,1327.0,60.67117559]
[1673278502719,4.85014442,1327.1,1327.0,0.06380559]
[1673278502928,5.97522156,1327.1,1326.9,15.17116]
[1673278503144,5.97522156,1327.1,1327.0,7.53579]
[1673278503452,3.15766679,1327.1,1327.0,15.17058]
[1673278503612,4.84811321,1327.1,1327.0,15.17058]
[1673278503976,3.15766679,1327.1,1327.0,7.63479]
[1673278504361,1.5,1327.0,1326.8,45.53686]
[1673278504712,1.12704796,1326.9,1326.8,38.099]
[1673278505087,2.8176199,1326.9,1326.8,38.099]
[1673278505340,1.69057194,1326.9,1326.8,35.099]
[1673278506046,9.22693194,1326.9,1326.8,35.099]
[1673278506257,1.69057194,1326.9,1326.8,35.099]
[1673278506470,3.53971642,1326.9,1326.8,35.099]
[1673278507513,2.97625639,1326.9,1326.8,42.63593]
[1673278507729,3.80210601,1327.0,1326.8,57.70979]
[1673278507939,1.12711191,1327.0,1326.8,57.70979]
[1673278508162,1.31891631,1327.1,1326.9,3.0]
[1673278508373,1.25291631,1327.1,1327.0,22.60737]
[1673278508712,0.1258044,1327.1,1327.0,27.40837]
[1673278509551,0.1258044,1327.1,1327.0,30.90837]
[1673278510202,0.1258044,1327.1,1327.0,27.40837]
[1673278511079,0.1258044,1327.1,1327.0,30.90837]
[1673278512131,0.1258044,1327.1,1327.0,34.70603064]
[1673278512404,0.7296288,1327.2,1327.0,34.70603064]
[1673278512585,0.7296288,1327.2,1327.1,5.49066064]
[1673278512930,0.7296288,1327.2,1327.1,31.19532064]
[1673278513075,0.7296288,1327.2,1327.1,40.05239782]
[1673278513287,0.7296288,1327.2,1327.1,41.74539782]
[1673278513496,0.11839846,1327.3,1327.1,41.97539782]
[1673278513749,1.25383766,1327.5,1327.2,22.27487064]
[1673278513923,0.12672575,1327.5,1327.4,31.84308]
[1673278514125,0.12672575,1327.5,1327.4,34.94208]
[1673278514359,5.75e-06,1327.5,1327.4,40.66274064]
[1673278514545,5.75e-06,1327.5,1327.4,37.1954947]
[1673278515216,5.75e-06,1327.5,1327.4,50.9654947]
[1673278515498,5.75e-06,1327.5,1327.4,39.36570064]
[1673278515651,5.75e-06,1327.5,1327.4,46.89922064]
[1673278516186,5.75e-06,1327.5,1327.4,35.56804]
[1673278516562,1.12711766,1327.5,1327.4,24.63252]
[1673278516770,1.12711766,1327.5,1327.4,18.16604]
[1673278517189,1.12711766,1327.5,1327.4,25.69956]
[1673278517396,1.69057194,1327.6,1327.4,25.69956]
[1673278517606,2.14711222,1327.6,1327.5,3.0]
[1673278517816,2.14711222,1327.6,1327.5,15.82933445]
[1673278518030,2.14711222,1327.6,1327.5,15.92833445]
[1673278518885,2.14711222,1327.6,1327.5,8.39538445]
[1673278519101,2.14711222,1327.6,1327.5,11.39538445]
[1673278519337,2.14711222,1327.6,1327.5,15.92833445]
[1673278519662,2.88908182,1327.6,1327.5,15.92833445]
[1673278519813,2.88908182,1327.6,1327.5,7.63195]
[1673278520182,2.88908182,1327.6,1327.5,18.1649]
[1673278520502,2.88908182,1327.6,1327.5,25.69785]
[1673278520674,2.14711222,1327.6,1327.5,25.69785]
[1673278521080,0.45654028,1327.6,1327.5,25.69785]
[1673278521924,2.14711222,1327.6,1327.5,18.1649]
[1673278522148,2.14711222,1327.6,1327.5,3.099]
[1673278522388,2.14711222,1327.6,1327.5,3.0]
[1673278522699,2.60732634,1327.6,1327.5,10.53295]
[1673278522869,2.60732634,1327.6,1327.5,10.63195]
[1673278523086,2.60732634,1327.6,1327.5,25.69785]
[1673278523330,2.14711222,1327.6,1327.5,25.69785]
[1673278523554,2.14711222,1327.6,1327.5,18.1649]
[1673278523708,4.40120814,1327.6,1327.5,3.099]
[1673278523920,4.40120814,1327.6,1327.5,3.0]
[1673278524387,2.7106362,1327.6,1327.5,18.0659]
[1673278524574,4.39717324,1327.6,1327.5,18.1649]
[1673278524922,4.39717324,1327.6,1327.5,25.69785]
[1673278525753,2.14307732,1327.6,1327.5,25.69785]
[1673278526335,4.39717324,1327.6,1327.5,25.69785]
[1673278527192,2.14307732,1327.6,1327.5,25.69785]
[1673278527541,3.26767308,1327.6,1327.5,25.69785]
[1673278527699,1.58113604,1327.6,1327.5,25.69785]
[1673278527909,3.26767308,1327.6,1327.5,25.69785]
[1673278528244,2.14307732,1327.6,1327.5,25.69785]
[1673278528442,4.39717324,1327.6,1327.5,25.69785]
[1673278528649,2.14307732,1327.6,1327.5,25.69785]
[1673278529616,4.39717324,1327.6,1327.5,25.69785]
[1673278530428,2.7106362,1327.6,1327.5,25.69785]
[1673278530890,2.7106362,1327.6,1327.5,18.1649]
[1673278531098,3.28354861,1327.6,1327.5,18.1649]
[1673278531293,13.1769431,1327.6,1327.5,3.099]
[1673278531517,6.10110338,1327.6,1327.4,18.16598]
[1673278531729,2.14470607,1327.5,1327.4,18.16598]
[1673278532463,2.14470607,1327.5,1327.4,18.4559696]
[1673278532859,4.40080199,1327.5,1327.4,3.3859896]
[1673278533064,4.39880199,1327.5,1327.4,3.2899896]
[1673278533636,4.39880199,1327.5,1327.4,10.8235096]
[1673278533796,4.39880199,1327.5,1327.4,10.9225096]
[1673278534014,5.18432891,1327.5,1327.4,10.9225096]
[1673278534235,5.18432891,1327.5,1327.4,18.4560296]
[1673278534492,5.18432891,1327.5,1327.4,15.46401439]
[1673278534673,5.18432891,1327.5,1327.4,0.3889896]
[1673278534674,3.49616312,1327.5,1327.4,0.3889896]
[1673278534883,3.49616312,1327.5,1327.4,42.8235096]
[1673278535079,22.73261789,1327.5,1327.4,0.3889896]
[1673278535297,15.19966789,1327.5,1327.4,0.2899896]
[1673278535517,7.66671789,1327.5,1327.4,0.2899896]
[1673278536002,0.45654028,1327.5,1327.4,0.2899896]
[1673278536212,1.36696219,1327.5,1327.4,22.8905496]
[1673278536487,1.36696219,1327.5,1327.4,22.9895496]
[1673278536641,1.12550368,1327.5,1327.4,25.9895496]
[1673278536850,2.81390021,1327.6,1327.4,25.9895496]
[1673278537056,1.12550368,1327.5,1327.4,25.9895496]
[1673278537300,1.12550368,1327.5,1327.4,18.4560296]
[1673278537730,1.36694026,1327.5,1327.4,18.4560296]
[1673278538051,1.36694026,1327.5,1327.4,22.25369024]
[1673278538259,1.68839653,1327.6,1327.4,22.25369024]
[1673278538473,5.27258379,1327.7,1327.4,29.78721024]
[1673278538633,2.38902902,1327.7,1327.4,29.78721024]
[1673278538845,2.38902902,1327.7,1327.5,3.79766064]
[1673278539065,2.38902902,1327.7,1327.6,22.59714]
[1673278539276,2.38902902,1327.7,1327.6,15.16376]
[1673278539543,2.38902902,1327.7,1327.6,22.69614]
[1673278539680,2.38902902,1327.7,1327.6,26.49380064]
[1673278539895,5.74733548,1327.7,1327.6,7.63138]
[1673278540104,2.92978071,1327.7,1327.6,0.099]
[1673278540363,2.92978071,1327.7,1327.6,22.59714]
[1673278540573,2.92978071,1327.7,1327.6,22.69614]
[1673278540795,2.92978071,1327.7,1327.6,15.16376]
[1673278540954,2.38902902,1327.7,1327.6,22.69614]
[1673278541934,2.38902902,1327.7,1327.6,15.16376]
[1673278542144,2.38902902,1327.7,1327.6,22.69614]
[1673278543800,2.38902902,1327.7,1327.6,0.099]
[1673278544013,3.49523956,1327.7,1327.5,7.62861]
[1673278544262,2.25189159,1327.6,1327.5,0.099]
[1673278544470,2.25189159,1327.6,1327.5,3.0]
[1673278544792,2.25189159,1327.6,1327.5,25.59885]
[1673278544952,2.25189159,1327.6,1327.5,25.69785]
[1673278545162,2.25189159,1327.6,1327.5,25.69554747]
[1673278546903,2.81755477,1327.6,1327.5,25.69554747]
[1673278547049,5.07283575,1327.6,1327.5,25.69554747]
[1673278547268,2.81755477,1327.6,1327.5,25.69554747]
[1673278548251,5.07282755,1327.6,1327.5,25.69554747]
[1673278549792,2.81755477,1327.6,1327.5,25.69554747]
[1673278550002,4.14939125,1327.7,1327.5,29.49320811]
[1673278550317,1.26296032,1327.7,1327.6,44.46000064]
[1673278550534,1.26296032,1327.7,1327.6,44.05900064]
[1673278553091,2.95515667,1327.7,1327.6,44.05900064]
[1673278553696,4.08339125,1327.7,1327.6,11.19658]
[1673278553869,4.08339125,1327.7,1327.6,18.16376]
[1673278554075,4.08339125,1327.7,1327.6,25.69614]
[1673278554295,1.82712945,1327.7,1327.6,25.69614]
[1673278555427,4.08339125,1327.7,1327.6,25.69614]
[1673278555896,1.82712945,1327.7,1327.6,25.69614]
[1673278556328,0.1349331,1327.7,1327.6,25.69614]
[1673278556689,0.1349331,1327.7,1327.6,60.69614]
[1673278560758,0.1349331,1327.7,1327.6,64.49380064]
[1673278561064,0.1349331,1327.7,1327.6,78.49380064]
[1673278562510,3.1e-06,1327.7,1327.6,82.89604934]
[1673278562702,3.1e-06,1327.7,1327.6,84.48304934]
[1673278563115,3.1e-06,1327.7,1327.6,78.72380064]
[1673278563327,3.1e-06,1327.7,1327.6,78.49380064]
[1673278563790,0.0020031,1327.7,1327.6,78.49080064]
[1673278564001,3.1e-06,1327.7,1327.6,78.49380064]
[1673278564413,3.1e-06,1327.7,1327.6,78.72380064]
[1673278564583,3.1e-06,1327.7,1327.6,80.08380064]
[1673278564794,3.1e-06,1327.7,1327.6,84.48345025]
[1673278565005,3.1e-06,1327.7,1327.6,80.08380064]
[1673278568325,3.1e-06,1327.7,1327.6,78.72380064]
[1673278568476,3.1e-06,1327.7,1327.6,78.73193776]
[1673278570098,3.1e-06,1327.7,1327.6,83.1294035]
[1673278570270,3.1e-06,1327.7,1327.6,78.73193776]
[1673278571994,3.1e-06,1327.7,1327.6,78.50193776]
[1673278574383,3.1e-06,1327.7,1327.6,78.73193776]
[1673278574594,3.1e-06,1327.7,1327.6,84.49157785]
[1673278574941,3.1e-06,1327.7,1327.6,80.09193776]
[1673278575668,3.1e-06,1327.7,1327.6,78.73193776]
[1673278575925,3.1e-06,1327.7,1327.6,78.50193776]
[1673278582601,3.1e-06,1327.7,1327.6,39.69614]
[1673278582602,1.24001413,1327.7,1327.6,39.69614]
[1673278582846,1.24000734,1327.7,1327.6,39.69614]
[1673278583063,3.1e-06,1327.7,1327.6,39.69614]
[1673278583390,1.12662148,1327.7,1327.6,78.49380064]
[1673278583699,3.1e-06,1327.7,1327.6,78.49380064]
[1673278585894,3.1e-06,1327.7,1327.6,78.72380064]
[1673278586270,1.12662148,1327.7,1327.6,63.42904064]
[1673278586478,2.9325509,1327.7,1327.6,78.49161316]
[1673278586721,1.24035455,1327.7,1327.6,78.49161316]
[1673278587746,1.12662148,1327.7,1327.6,78.49161316]
[1673278588209,1.24024156,1327.7,1327.6,78.49161316]
[1673278588368,1.24024156,1327.7,1327.6,78.72161316]
[1673278588369,1.24031735,1327.7,1327.6,78.72161316]
[1673278588583,1.12662148,1327.7,1327.6,78.72161316]
[1673278588788,1.24031549,1327.7,1327.6,78.72161316]
[1673278590072,2.93251184,1327.7,1327.6,78.72161316]
[1673278590478,1.24031549,1327.7,1327.6,78.72161316]
[1673278590899,2.93251184,1327.7,1327.6,78.72161316]
[1673278593320,2.93251184,1327.7,1327.6,78.49161316]
[1673278593571,1.80589346,1327.7,1327.6,78.49161316]
[1673278593951,2.82145519,1327.7,1327.6,78.49161316]
[1673278594213,1.80589346,1327.7,1327.6,78.49161316]
[1673278594795,1.24310918,1327.7,1327.6,82.25053219]
[1673278595442,1.24310918,1327.7,1327.6,80.24055751]
[1673278596382,2.93530553,1327.7,1327.6,78.49161316]
[1673278597111,1.24310918,1327.7,1327.6,80.2406851]
[1673278597343,1.24310918,1327.7,1327.6,82.25075479]
[1673278599460,1.24310918,1327.7,1327.6,80.4706851]
[1673278600101,1.19310918,1327.7,1327.6,80.4706851]
[1673278601139,2.88530553,1327.7,1327.6,78.72161316]
[1673278601350,2.88530553,1327.7,1327.6,80.47287927]
[1673278602143,2.88530553,1327.7,1327.6,78.72161316]
[1673278602354,2.88530553,1327.7,1327.6,56.12447316]
[1673278602614,2.88530553,1327.7,1327.6,78.72161316]
[1673278602929,2.88530553,1327.7,1327.6,78.49161316]
[1673278604916,1.80589036,1327.7,1327.6,78.49161316]
[1673278606007,0.11369401,1327.7,1327.6,78.72161316]
[1673278606186,1.80589036,1327.7,1327.6,80.47275036]
[1673278606378,1.80589036,1327.7,1327.6,78.49161316]
[1673278606592,1.80589036,1327.7,1327.6,70.95923316]
[1673278606804,1.80589036,1327.7,1327.6,78.49161316]
[1673278607558,1.80589036,1327.7,1327.6,78.72161316]
[1673278610177,2.93546935,1327.7,1327.6,78.72161316]
[1673278610598,1.80589036,1327.7,1327.6,78.72161316]
[1673278610817,1.80789036,1327.7,1327.6,71.18623316]
[1673278611028,1.80589036,1327.7,1327.6,63.42685316]
[1673278611340,1.80589036,1327.7,1327.6,43.49161316]
[1673278611341,2.51395436,1327.7,1327.6,43.49161316]
[1673278611532,4.77021616,1327.7,1327.6,43.49161316]
[1673278611745,4.77021616,1327.7,1327.6,74.69395252]
[1673278611937,3.07801981,1327.7,1327.6,60.69395252]
[1673278612146,4.65873836,1327.7,1327.6,60.69395252]